fUSD/lending_fUSD_20250223
["ID","MTS","AMOUNT","RATE_DAILY","PERIOD"]
[354192716,1740341478653,-1922.43,0.0001652,2]
[354192717,1740341478662,-500.0,0.0001652,2]
[354192718,1740341478671,-1439.32,0.0001652,2]
[354192719,1740341478680,-606.8,0.0001652,2]
[354192720,1740341478689,-500.0,0.0001652,2]
[354192721,1740341478699,-500.0,0.0001652,2]
[354192722,1740341478707,-3993.51,0.0001652,2]
[354192723,1740341478716,-954.47,0.0001652,2]
[354192724,1740341478725,-500.0,0.0001652,2]
[354192725,1740341478734,-1769.9,0.0001652,2]
[354192726,1740341478743,-500.0,0.0001652,2]
[354192727,1740341478752,-500.0,0.0001652,2]
[354192728,1740341478761,-666.66,0.0001652,2]
[354192729,1740341478771,-1545.69,0.0001652,2]
[354192730,1740341478779,-2112.1,0.0001652,2]
[354192731,1740341478789,-500.0,0.0001652,2]
[354192732,1740341478798,-567.50821832,0.0001652,2]
[354192733,1740341478807,-703.14,0.0001652,2]
[354192734,1740341478816,-1061.53,0.0001652,2]
[354192735,1740341478825,-500.0,0.0001652,2]
[354192736,1740341478834,-1655.08,0.0001652,2]
[354192737,1740341478843,-1180.25,0.0001652,2]
[354192738,1740341478852,-3930.58,0.0001652,2]
[354192739,1740341478862,-500.0,0.0001652,2]
[354192740,1740341478871,-500.0,0.0001652,2]
[354192741,1740341478880,-500.0,0.0001652,2]
[354192742,1740341478889,-3397.50383788,0.0001652,2]
[354192765,1740342639771,-215.05602971,0.000108,2]
[354192766,1740342639780,-210.15775834,0.00010858,2]
[354192767,1740342639789,-300.0,0.00010957,2]
[354192768,1740342639798,-156.045622,0.00010958,2]
[354192769,1740342639807,-163.754214,0.00010958,2]
[354192770,1740342639816,-156.045622,0.00010958,2]
[354192771,1740342639826,-191.046582,0.00010958,2]
[354192772,1740342639835,-156.045622,0.00010958,2]
[354192773,1740342639844,-191.046583,0.00010958,2]
[354192774,1740342639855,-156.045622,0.00010958,2]
[354192775,1740342639863,-191.046582,0.00010958,2]
[354192776,1740342639873,-156.045622,0.00010958,2]
[354192777,1740342639882,-191.046583,0.00010958,2]
[354192778,1740342639891,-5218.22004075,0.00011,2]
[354193263,1740342646106,-7668.40388,0.00011,2]
[354193265,1740343376494,155.26,8.767e-05,2]
[354193279,1740343831894,-150.0,0.00010932,2]
[354193280,1740343831904,-156.045622,0.00010958,2]
[354193281,1740343831914,-191.046582,0.00010958,2]
[354193282,1740343831923,-156.045622,0.00010958,2]
[354193283,1740343831933,-191.046583,0.00010958,2]
[354193284,1740343831943,-156.045622,0.00010958,2]
[354193285,1740343831951,-191.046582,0.00010958,2]
[354193286,1740343831961,-191.046583,0.00010958,2]
[354193287,1740343831970,-156.045622,0.00010958,2]
[354193288,1740343831979,-156.045622,0.00010958,2]
[354193289,1740343831990,-191.046582,0.00010958,2]
[354193290,1740343831998,-156.045622,0.00010958,2]
[354193291,1740343832007,-191.046583,0.00010958,2]
[354193292,1740343832016,-167.539023,0.00010958,2]
[354193293,1740343832025,-285.457431,0.00010958,2]
[354193294,1740343832034,-162.18113,0.00010958,2]
[354193295,1740343832043,-196.351814,0.00010958,2]
[354193296,1740343832052,-202.726412,0.00010958,2]
[354193297,1740343832061,-196.351812,0.00010958,2]
[354193298,1740343832070,-200.0,0.00010993,2]
[354193299,1740343832080,-3736.83984595,0.00011,2]
[354193300,1740343832109,-1906.69665276,0.00011,2]
[354193301,1740343832118,-200.0,0.00011,2]
[354193302,1740343832127,-1967.93937,0.00011,2]
[354193303,1740343832138,-200.0,0.00011,2]
[354193304,1740343832147,-150.0,0.00011109,2]
[354193305,1740343832156,-200.0,0.0001111,2]
[354193306,1740343832165,-200.0,0.0001111,2]
[354193307,1740343832174,-200.0,0.00011221,2]
[354193308,1740343832183,-200.0,0.00011221,2]
[354193309,1740343832192,-1000.0,0.00011279,2]
[354193310,1740343832202,-163.754214,0.00011287,2]
[354193311,1740343832211,-200.0,0.00011333,2]
[354193312,1740343832220,-200.0,0.00011333,2]
[354193313,1740343832228,-381.08244881,0.00011359,2]
[354193314,1740343832238,-250.0,0.0001139,2]
[354193315,1740343832247,-233450.512717,0.000114,5]
[354193316,1740343832256,-679.0,0.000114,5]
[354193317,1740343832265,-200.0,0.00011447,2]
[354193318,1740343832274,-200.0,0.00011447,2]
[354193320,1740343832283,-206.2,0.00011517,2]
[354193321,1740343832292,-365.47,0.00011522,2]
[354193323,1740343832301,-220.0,0.00011541,2]
[354193325,1740343832310,-1719.50181544,0.00011961,2]
[354193327,1740343832319,-150.0,0.00012053,2]
[354193329,1740343832329,-150.0,0.00012054,2]
[354193330,1740343832338,-16872.6062228,0.00012061,2]
[354193333,1740343832350,-7027.3937772,0.00012061,2]
[354193334,1740343832359,-242.0,0.00012089,2]
[354193336,1740343832368,-687.85,0.00012118,2]
[354193338,1740343832377,-581.02198467,0.00012183,2]
[354193340,1740343832387,-943.26250399,0.0001246,2]
[354193341,1740343832396,-1719.50181538,0.00012484,2]
[354193343,1740343832405,-266.2,0.00012637,2]
[354193345,1740343832414,-1000.0,0.00012689,2]
[354193348,1740343832423,-365.47,0.00012962,2]
[354193351,1740343832434,-300.55444405,0.00013,2]
[354193354,1740343832445,-550.0,0.00013,2]
[354193356,1740343832454,-1719.50181538,0.00013007,2]
[354193359,1740343832463,-292.82,0.00013185,2]
[354193361,1740343832472,-1719.50181538,0.0001353,2]
[354193363,1740343832482,-453.92912298,0.000136,2]
[354193365,1740343832491,-151.79,0.00013617,2]
[354193367,1740343832501,-527.01,0.000137,2]
[354193369,1740343832510,-151.79,0.00013715,2]
[354193370,1740343832519,-400.0,0.00013733,2]
[354193372,1740343832528,-151.79,0.00013812,2]
[354193374,1740343832537,-225.25708954,0.000139,2]
[354193376,1740343832546,-151.79,0.00013909,2]
[354193378,1740343832554,-151.79,0.00014006,2]
[354193380,1740343832563,-1000.0,0.00014099,2]
[354193381,1740343832572,-151.79,0.00014104,2]
[354193383,1740343832581,-165.26,0.00014173,2]
[354193385,1740343832592,-151.79,0.00014201,2]
[354193387,1740343832601,-1171.86,0.00014244,2]
[354193389,1740343832610,-150.0,0.00014289,2]
[354193391,1740343832619,-151.79,0.00014298,2]
[354193392,1740343832628,-687.85,0.00014382,2]
[354193394,1740343832637,-151.79,0.00014395,2]
[354193396,1740343832646,-365.47,0.00014402,2]
[354193398,1740343832655,-151.79,0.00014493,2]
[354193400,1740343832664,-151.79,0.0001459,2]
[354193402,1740343832673,-155.71,0.00014641,2]
[354193403,1740343832682,-151.79,0.00014687,2]
[354193405,1740343832690,-151.79,0.00014784,2]
[354193407,1740343832699,-150.0,0.00014873,2]
[354193409,1740343832708,-151.79,0.00014882,2]
[354193411,1740343832717,-150.0,0.00014918,2]
[354193413,1740343832726,-150.0,0.00014918,2]
[354193415,1740343832734,-150.0,0.00014918,2]
[354193416,1740343832743,-217.83869598,0.00014918,2]
[354193418,1740343832752,-150.0,0.00014924,2]
[354193420,1740343832761,-151.79,0.00014979,2]
[354193422,1740343832770,-314.4227703,0.00015024,2]
[354193424,1740343832780,-2281.0,0.000151,3]
[354193426,1740343832789,-543.19,0.00015127,2]
[354193427,1740343832798,-219.38,0.00015147,2]
[354193429,1740343832807,-3285.53384891,0.00015166,2]
[354193431,1740343832816,-543.19,0.00015206,2]
[354193433,1740343832825,-150.0,0.00015281,2]
[354193435,1740343832834,-543.19,0.00015286,2]
[354193437,1740343832843,-543.19,0.00015365,2]
[354193439,1740343832851,-1439.85,0.00015415,2]
[354193440,1740343832861,-556.88764819,0.00015419,2]
[354193442,1740343832870,-543.19,0.00015445,2]
[354193444,1740343832879,-1000.0,0.00015447,2]
[354193446,1740343832888,-1000.0,0.00015509,2]
[354193448,1740343832897,-543.19,0.00015525,2]
[354193450,1740343832905,-162.98519443,0.00015569,2]
[354193451,1740343832914,-543.19,0.00015604,2]
[354193453,1740343832923,-150.0,0.00015614,2]
[354193455,1740343832932,-150.0,0.00015669,2]
[354193457,1740343832941,-543.19,0.00015684,2]
[354193459,1740343832951,-150.0,0.00015746,2]
[354193461,1740343832960,-150.0,0.00015747,2]
[354193462,1740343832969,-543.19,0.00015764,2]
[354193464,1740343832979,-365.47,0.00015842,2]
[354193465,1740343832988,-543.19,0.00015843,2]
[354193466,1740343832996,-150.0,0.00015887,2]
[354193467,1740343833005,-155.26,0.0001589,2]
[354193468,1740343833014,-2210.17560331,0.000159,2]
[354193469,1740343833023,-543.19,0.00015923,2]
[354193470,1740343833032,-2210.17560326,0.00015985,2]
[354193471,1740343833041,-500.0,0.00015999,2]
[354193472,1740343833050,-500.0,0.00015999,2]
[354193473,1740343833058,-500.0,0.00015999,2]
[354193474,1740343833067,-500.0,0.00015999,2]
[354193475,1740343833077,-426.79709903,0.00015999,2]
[354193476,1740343833086,-500.0,0.00015999,2]
[354193477,1740343833094,-175.25457586,0.00015999,2]
[354193478,1740343833102,-500.0,0.00015999,2]
[354193479,1740343833111,-500.0,0.00015999,2]
[354193481,1740343833120,-500.0,0.00015999,2]
[354193482,1740343833130,-500.0,0.00015999,2]
[354193484,1740343833139,-53807.42120374,0.00016,2]
[354193486,1740343833149,-248.96348743,0.00016,10]
[354193488,1740343833159,-56447.98574784,0.00016,5]
[354193490,1740343833169,-1967.93937,0.00016,2]
[354193492,1740343833179,-543.19,0.00016002,2]
[354193494,1740343833189,-2210.17560326,0.0001607,2]
[354193496,1740343833200,-543.19,0.00016082,2]
[354193498,1740343833210,-150.0,0.000161,2]
[354193500,1740343833219,-2210.17560326,0.00016156,2]
[354193502,1740343833229,-543.19,0.00016162,2]
[354193504,1740343833238,-3037.241,0.00016171,2]
[354193506,1740343833247,-165.375,0.00016171,2]
[354193508,1740343833256,-213.1211,0.00016189,2]
[354193510,1740343833265,-527.01,0.00016217,2]
[354193512,1740343833274,-30000.0,0.00016227,2]
[354193514,1740343833284,-41991.37405849,0.00016227,2]
[354193517,1740343833300,-678.71507305,0.00016227,2]
[354193520,1740343833327,-417.2299355,0.00015999,2]
[354193523,1740343833338,-82.7700645,0.00015999,2]
[354193525,1740343833347,-500.0,0.00015999,2]
[354193527,1740343833357,-39.3601973,0.00016227,2]
[354193529,1740343833369,-286.6875858,0.00016227,2]
[354193531,1740343833380,-496.769991,0.00016227,2]
[354193533,1740343833390,-768.21492302,0.00016227,2]
[354193536,1740343833401,-433.25400006,0.00016227,2]
[354193538,1740343833412,-348.816881,0.00016227,2]
[354193565,1740343833423,-269.46,0.00016227,2]
[354193570,1740343833692,-1489.07100804,0.00016227,2]
[354193580,1740343833773,-500.0,0.00015999,2]
[354193582,1740343833783,-39897.93622062,0.00016227,2]
[354193584,1740343833792,-2210.17560326,0.00016241,2]
[354193586,1740343833801,-543.19,0.00016241,2]
[354193588,1740343833811,-4255.11716225,0.0001632,2]
[354193590,1740343833820,-699.05000001,0.0001632,2]
[354193592,1740343833829,-543.19,0.00016321,2]
[354193594,1740343833839,-2027.0,0.00016323,2]
[354193596,1740343833848,-1275.0,0.00016323,2]
[354193598,1740343833857,-639.0,0.00016323,2]
[354193600,1740343833866,-569.0,0.00016323,2]
[354193602,1740343833876,-505.181,0.00016323,2]
[354193604,1740343833886,-784.0,0.00016323,2]
[354193606,1740343833895,-907.0,0.00016323,2]
[354193608,1740343833904,-1424.0,0.00016323,2]
[354193609,1740343833913,-1267.0,0.00016323,2]
[354193612,1740343833922,-540.0,0.00016323,2]
[354193613,1740343833931,-4037.519,0.00016323,2]
[354193615,1740343833941,-250.0,0.00016323,2]
[354193617,1740343833950,-232.0,0.00016323,2]
[354193619,1740343833959,-2210.17560326,0.00016326,2]
[354193621,1740343833968,-7500.0,0.00016328,2]
[354193623,1740343833977,-165.1905457,0.00016338,2]
[354193625,1740343833986,-498.06629765,0.00016338,2]
[354193628,1740343833995,-500.0,0.00016387,2]
[354193629,1740343834005,-1075.53001349,0.00016388,2]
[354193631,1740343834015,-500.0,0.00016388,2]
[354193634,1740343834024,-2000.0,0.00016388,2]
[354193636,1740343834034,-500.0,0.00016388,2]
[354193638,1740343834043,-200.0,0.00016388,2]
[354193639,1740343834053,-1741.21929945,0.00016397,7]
[354193641,1740343834062,-543.19,0.000164,2]
[354193643,1740343834072,-2210.17560326,0.00016411,2]
[354193645,1740343834081,-44751.09145468,0.00016428,2]
[354193653,1740343834146,-500.0,0.00015999,2]
[354193655,1740343834155,-436.67725654,0.00016428,2]
[354193657,1740343834167,-563.32274346,0.00016428,2]
[354193660,1740343834178,-42057.35314684,0.00016428,2]
[354193662,1740343834189,-272.80967872,0.00016428,2]
[354194221,1740343840062,-1719.50181538,0.00014053,2]
[354194222,1740343840071,-1719.50181538,0.00014575,2]
[354194223,1740343840080,-2751.0,0.00015406,2]
[354194224,1740343840089,-500.0,0.00015999,2]
[354194225,1740343840099,-627.5295881,0.00015999,2]
[354194226,1740343840108,-500.0,0.00015999,2]
[354194227,1740343840117,-500.0,0.00015999,2]
[354194228,1740343840127,-1140.81942229,0.00016227,2]
[354194229,1740343840136,-121.04735885,0.00016323,2]
[354194230,1740343840334,-48.95264115,0.00016323,2]
[354194231,1740343840343,-261.08168484,0.00016328,2]
[354194232,1740343840352,-93399.51276376,0.00016428,2]
[354194233,1740343840362,-157.52225751,0.00016428,2]
[354194234,1740343840371,-1105.6127077,0.00016437,5]
[354194235,1740343840380,-1105.6127077,0.00016437,5]
[354194236,1740343840389,-999.0,0.00016437,2]
[354194237,1740343840398,-1765.0,0.00016438,2]
[354194238,1740343840407,-500.0,0.00016438,2]
[354194239,1740343840416,-500.0,0.00016438,2]
[354194240,1740343840425,-500.0,0.00016438,2]
[354194241,1740343840434,-500.0,0.00016438,2]
[354194242,1740343840443,-500.0,0.00016438,2]
[354194243,1740343840452,-500.0,0.00016438,2]
[354194244,1740343840461,-500.0,0.00016438,2]
[354194245,1740343840470,-500.0,0.00016438,2]
[354194246,1740343840479,-162.87074384,0.00016438,2]
[354194247,1740343840488,-548.84758303,0.00016438,2]
[354194248,1740343840497,-500.0,0.00016438,2]
[354194249,1740343840506,-500.0,0.00016438,2]
[354194250,1740343840515,-455.1174836,0.00016438,2]
[354194251,1740343840524,-500.72537632,0.00016438,2]
[354194252,1740343840533,-500.0,0.00016438,2]
[354194253,1740343840542,-502.97306693,0.00016438,2]
[354194254,1740343840551,-500.0,0.00016438,2]
[354194256,1740343840560,-500.0,0.00016438,2]
[354194258,1740343840569,-500.0,0.00016438,2]
[354194260,1740343840579,-509.52390184,0.00016438,2]
[354194262,1740343840588,-500.0,0.00016438,2]
[354194264,1740343840597,-455.20503646,0.00016438,2]
[354194266,1740343840606,-500.0,0.00016438,2]
[354194268,1740343840615,-500.0,0.00016438,2]
[354194269,1740343840624,-500.0,0.00016438,2]
[354194270,1740343840634,-412.23122596,0.00016438,2]
[354194271,1740343840644,-223.20966926,0.00016438,2]
[354194272,1740343840654,-500.0,0.00016438,2]
[354194273,1740343840664,-500.0,0.00016438,2]
[354194274,1740343840674,-500.0,0.00016438,2]
[354194275,1740343840684,-500.0,0.00016438,2]
[354194276,1740343840695,-500.0,0.00016438,2]
[354194277,1740343840706,-500.0,0.00016438,2]
[354194278,1740343840715,-415.85060618,0.00016438,2]
[354194279,1740343840725,-393.67513432,0.00016438,2]
[354194280,1740343840734,-553.92144777,0.00016438,2]
[354194281,1740343840744,-389.14733212,0.00016438,2]
[354194282,1740343840753,-500.0,0.00016438,2]
[354194283,1740343840761,-500.0,0.00016438,2]
[354194284,1740343840770,-372.87309936,0.00016438,2]
[354194285,1740343840779,-500.0,0.00016438,2]
[354194286,1740343840788,-500.0,0.00016438,2]
[354194287,1740343840797,-501.24907164,0.00016438,2]
[354194288,1740343840806,-500.0,0.00016438,2]
[354194289,1740343840815,-500.0,0.00016438,2]
[354194290,1740343840823,-500.0,0.00016438,2]
[354194291,1740343840832,-501.44754775,0.00016438,2]
[354194292,1740343840842,-151.0,0.00016438,2]
[354194293,1740343840851,-151.0,0.00016438,2]
[354194294,1740343840859,-162.17783118,0.00016438,2]
[354194295,1740343840868,-527.34,0.00016438,2]
[354194296,1740343840877,-500.0,0.00016438,2]
[354194297,1740343840886,-693.84,0.00016438,2]
[354194298,1740343840895,-500.0,0.00016438,2]
[354194299,1740343840903,-500.0,0.00016438,2]
[354194300,1740343840912,-500.0,0.00016438,2]
[354194301,1740343840921,-516.16,0.00016438,2]
[354194302,1740343840930,-500.0,0.00016438,2]
[354194303,1740343840939,-500.0,0.00016438,2]
[354194304,1740343840947,-500.0,0.00016438,2]
[354194305,1740343840957,-500.0,0.00016438,2]
[354194306,1740343840965,-543.48,0.00016438,2]
[354194307,1740343840975,-500.0,0.00016438,2]
[354194308,1740343840983,-500.0,0.00016438,2]
[354194309,1740343840993,-500.0,0.00016438,2]
[354194310,1740343841003,-500.0,0.00016438,2]
[354194311,1740343841013,-500.0,0.00016438,2]
[354194312,1740343841023,-500.96373816,0.00016438,2]
[354194313,1740343841033,-541.66,0.00016438,2]
[354194314,1740343841043,-500.0,0.00016438,2]
[354194315,1740343841051,-688.62,0.00016438,2]
[354194316,1740343841061,-173.77840738,0.00016438,2]
[354194317,1740343841070,-500.0,0.00016438,2]
[354194318,1740343841079,-500.0,0.00016438,2]
[354194319,1740343841088,-500.0,0.00016438,2]
[354194320,1740343841097,-151.0,0.00016438,2]
[354194321,1740343841107,-500.0,0.00016438,2]
[354194322,1740343841117,-500.0,0.00016438,2]
[354194323,1740343841126,-151.0,0.00016438,2]
[354194324,1740343841135,-500.0,0.00016438,2]
[354194325,1740343841146,-500.0,0.00016438,2]
[354194326,1740343841155,-500.0,0.00016438,2]
[354194327,1740343841165,-500.0,0.00016438,2]
[354194328,1740343841175,-500.0,0.00016438,2]
[354194329,1740343841184,-638.28,0.00016438,2]
[354194330,1740343841195,-792.86,0.00016438,2]
[354194331,1740343841204,-500.0,0.00016438,2]
[354194332,1740343841213,-500.0,0.00016438,2]
[354194333,1740343841222,-500.0,0.00016438,2]
[354194334,1740343841231,-686.97,0.00016438,2]
[354194335,1740343841240,-500.0,0.00016438,2]
[354194336,1740343841249,-703.02,0.00016438,2]
[354194337,1740343841259,-1248.47,0.00016438,2]
[354194338,1740343841269,-500.0,0.00016438,2]
[354194339,1740343841278,-889.63,0.00016438,2]
[354194340,1740343841287,-573.48,0.00016438,2]
[354194341,1740343841295,-706.59,0.00016438,2]
[354194342,1740343841304,-500.0,0.00016438,2]
[354194343,1740343841313,-717.05,0.00016438,2]
[354194344,1740343841322,-500.0,0.00016438,2]
[354194345,1740343841331,-500.0,0.00016438,2]
[354194346,1740343841340,-151.0,0.00016438,2]
[354194347,1740343841349,-151.0,0.00016438,2]
[354194348,1740343841358,-492.77422588,0.00016438,2]
[354194349,1740343841367,-500.0,0.00016438,2]
[354194350,1740343841376,-500.0,0.00016438,2]
[354194351,1740343841385,-1040.39,0.00016438,2]
[354194352,1740343841394,-1199.15,0.00016438,2]
[354194353,1740343841403,-500.0,0.00016438,2]
[354194354,1740343841411,-500.0,0.00016438,2]
[354194355,1740343841422,-500.0,0.00016438,2]
[354194356,1740343841433,-500.0,0.00016438,2]
[354194357,1740343841443,-505.41017936,0.00016438,2]
[354194358,1740343841452,-781.31,0.00016438,2]
[354194359,1740343841461,-500.0,0.00016438,2]
[354194360,1740343841470,-500.0,0.00016438,2]
[354194361,1740343841479,-500.0,0.00016438,2]
[354194362,1740343841488,-500.0,0.00016438,2]
[354194363,1740343841496,-500.0,0.00016438,2]
[354194364,1740343841505,-500.0,0.00016438,2]
[354194365,1740343841515,-500.0,0.00016438,2]
[354194366,1740343841526,-500.0,0.00016438,2]
[354194367,1740343841537,-734.72,0.00016438,2]
[354194368,1740343841547,-500.0,0.00016438,2]
[354194369,1740343841557,-500.0,0.00016438,2]
[354194370,1740343841566,-500.0,0.00016438,2]
[354194371,1740343841575,-500.0,0.00016438,7]
[354194372,1740343841585,-500.0,0.00016438,2]
[354194373,1740343841594,-500.0,0.00016438,2]
[354194374,1740343841604,-625.0,0.00016438,2]
[354194375,1740343841613,-500.0,0.00016438,2]
[354194376,1740343841622,-151.0,0.00016438,2]
[354194377,1740343841631,-151.0,0.00016438,2]
[354194378,1740343841642,-723.95,0.00016438,2]
[354194379,1740343841653,-500.0,0.00016438,2]
[354194380,1740343841663,-687.87,0.00016438,2]
[354194381,1740343841673,-218.903556,0.00016438,2]
[354194382,1740343841683,-776.6,0.00016438,2]
[354194383,1740343841692,-662.52,0.00016438,2]
[354194384,1740343841703,-500.0,0.00016438,2]
[354194385,1740343841714,-500.0,0.00016438,2]
[354194386,1740343841724,-500.0,0.00016438,2]
[354194387,1740343841734,-796.55,0.00016438,2]
[354194388,1740343841747,-814.83,0.00016438,2]
[354194389,1740343841756,-500.0,0.00016438,2]
[354194390,1740343841765,-703.01,0.00016438,2]
[354194391,1740343841775,-689.81,0.00016438,2]
[354194392,1740343841784,-500.0,0.00016438,2]
[354194393,1740343841793,-500.0,0.00016438,2]
[354194394,1740343841802,-500.0,0.00016438,2]
[354194395,1740343841812,-207.47878986,0.00016438,2]
[354194396,1740343841821,-500.0,0.00016438,2]
[354194397,1740343841831,-151.0,0.00016438,2]
[354194398,1740343841839,-151.0,0.00016438,2]
[354194399,1740343841848,-500.0,0.00016438,2]
[354194400,1740343841859,-500.0,0.00016438,2]
[354194401,1740343841869,-500.0,0.00016438,2]
[354194402,1740343841879,-781.83,0.00016438,2]
[354194403,1740343841888,-500.0,0.00016438,2]
[354194404,1740343841900,-500.0,0.00016438,2]
[354194405,1740343841911,-500.0,0.00016438,2]
[354194406,1740343841920,-500.0,0.00016438,2]
[354194407,1740343841929,-769.09,0.00016438,2]
[354194408,1740343841940,-500.0,0.00016438,2]
[354194409,1740343841949,-942.23,0.00016438,2]
[354194410,1740343841958,-1130.85,0.00016438,2]
[354194411,1740343841967,-500.0,0.00016438,2]
[354194412,1740343841976,-500.0,0.00016438,2]
[354194413,1740343841986,-500.0,0.00016438,2]
[354194414,1740343841995,-500.0,0.00016438,2]
[354194415,1740343842005,-500.0,0.00016438,2]
[354194416,1740343842014,-637.99,0.00016438,2]
[354194417,1740343842023,-664.99,0.00016438,2]
[354194418,1740343842033,-500.0,0.00016438,2]
[354194419,1740343842042,-770.57,0.00016438,2]
[354194420,1740343842052,-500.0,0.00016438,2]
[354194421,1740343842061,-500.0,0.00016438,2]
[354194422,1740343842071,-500.0,0.00016438,2]
[354194423,1740343842080,-1034.34,0.00016438,2]
[354194424,1740343842090,-500.0,0.00016438,2]
[354194425,1740343842100,-151.0,0.00016438,2]
[354194426,1740343842110,-151.0,0.00016438,2]
[354194427,1740343842119,-527.78087388,0.00016438,2]
[354194428,1740343842129,-500.0,0.00016438,2]
[354194429,1740343842139,-500.0,0.00016438,2]
[354194430,1740343842148,-500.0,0.00016438,2]
[354194431,1740343842157,-600.87,0.00016438,2]
[354194432,1740343842167,-500.0,0.00016438,2]
[354194433,1740343842176,-500.0,0.00016438,2]
[354194434,1740343842185,-746.03,0.00016438,2]
[354194435,1740343842195,-500.0,0.00016438,2]
[354194436,1740343842204,-500.0,0.00016438,2]
[354194437,1740343842214,-500.0,0.00016438,2]
[354194438,1740343842223,-710.25,0.00016438,2]
[354194439,1740343842233,-500.0,0.00016438,2]
[354194440,1740343842242,-500.0,0.00016438,2]
[354194441,1740343842251,-734.17,0.00016438,2]
[354194442,1740343842261,-500.0,0.00016438,2]
[354194443,1740343842271,-500.0,0.00016438,2]
[354194444,1740343842280,-703.72,0.00016438,2]
[354194445,1740343842290,-865.64,0.00016438,2]
[354194446,1740343842299,-500.0,0.00016438,2]
[354194447,1740343842310,-732.05,0.00016438,2]
[354194448,1740343842319,-500.0,0.00016438,2]
[354194449,1740343842328,-2331.89,0.00016438,2]
[354194450,1740343842338,-1175.06,0.00016438,2]
[354194451,1740343842348,-752.25,0.00016438,2]
[354194452,1740343842358,-500.0,0.00016438,2]
[354194453,1740343842367,-500.0,0.00016438,2]
[354194454,1740343842376,-500.0,0.00016438,2]
[354194455,1740343842386,-500.0,0.00016438,2]
[354194456,1740343842396,-500.0,0.00016438,2]
[354194457,1740343842405,-799.64,0.00016438,2]
[354194458,1740343842414,-534.30555416,0.00016438,2]
[354194459,1740343842424,-500.0,0.00016438,2]
[354194460,1740343842433,-500.0,0.00016438,2]
[354194461,1740343842443,-500.0,0.00016438,2]
[354194462,1740343842452,-500.0,0.00016438,2]
[354194463,1740343842463,-500.0,0.00016438,2]
[354194464,1740343842474,-500.0,0.00016438,2]
[354194465,1740343842484,-500.0,0.00016438,2]
[354194466,1740343842494,-151.0,0.00016438,2]
[354194467,1740343842504,-500.0,0.00016438,2]
[354194468,1740343842517,-194.034753,0.00016438,2]
[354194469,1740343842528,-502.29223499,0.00016438,2]
[354194470,1740343842538,-500.0,0.00016438,2]
[354194471,1740343842548,-500.0,0.00016438,2]
[354194472,1740343842559,-500.0,0.00016438,2]
[354194473,1740343842569,-882.25,0.00016438,2]
[354194474,1740343842578,-572.45,0.00016438,2]
[354194475,1740343842588,-304.44721054,0.00016438,2]
[354194476,1740343842598,-500.0,0.00016438,2]
[354194477,1740343842608,-151.0,0.00016438,2]
[354194478,1740343842619,-151.0,0.00016438,2]
[354194479,1740343842628,-904.65,0.00016438,2]
[354194480,1740343842638,-500.0,0.00016438,2]
[354194481,1740343842649,-500.0,0.00016438,2]
[354194483,1740343842659,-1013.24,0.00016438,2]
[354194485,1740343842668,-688.42,0.00016438,2]